{"text_format":"1","workbook":"xlsx","n_sheets":2,"sheets":["ورقة1","Sheet1"],"not_rendered":{"charts":0,"images":0,"macros":1,"external_links":1,"defined_names":1,"comments":0,"pivot_tables":0},"unopened":[],"bounds":{"document_bytes":16777216,"sheet_cells":100000,"rows_first":2000,"rows_last":500,"rows_between":2000,"halvings":0,"cell_chars":16384,"cell_head_chars":4096},"cells_cut":0,"cells_raw":0,"read":"whole","date_system":"1900"}

{"sheet":"ورقة1","index":0,"n_rows":28,"n_cols":13,"rows_kept":28,"cut":false,"hidden":false,"merged":[[17,1,17,2],[17,3,17,4]]}
["فا"]
[null,"الاسم","ابراهيم الصيد المصروب العموري","سنة",2019,null,"النتيجة التوقعة"]
[null,null,null,null,null,null,null,null,null,null,null,1,"واحد"]
[null,"شهر الغياب","أيام الغياب","أيام الغياب بالحروف","عدد أيام الغياب",null,"اسم أيام الغياب",null,null,null,null,2,"إثنان"]
[1,"يناير","217 -11 -7 -2 -1 ",{"$f":"IF(E5=\"\",\"\",VLOOKUP(E5,$L$3:$M$25,2,0))","v":"أربعة"},4,null,"الثلاثاء,الأربعاء,الإثنين,الجمعة",null,null,null,null,3,"ثلاثة"]
[2,"فبراير"," 35 *  17 acb / 12","إثنان",2,null,"الثلاثاء,الأحد",null,null,null,null,4,"أربعة"]
[3,"مارس",null,"",null,null,null,null,null,null,null,5,"خمسة"]
[4,"ابريل",null,"",null,null,null,null,null,null,null,6,"ستة"]
[5,"مايو",null,"",null,null,null,null,null,null,null,7,"سبعة"]
[6,"يونيو",null,"",null,null,null,null,null,null,null,8,"ثمانثى"]
[7,"يوليو",null,"",null,null,null,null,null,null,null,9,"تسعة"]
[8,"أغسطس",null,"",null,null,null,null,null,null,null,10,"عشرة"]
[9,"سبتمبر","27 -25 -18 -13 -9 ","خمسة",5,null,"الإثنين,الجمعة,الأربعاء,الأربعاء,الجمعة",null,null,null,null,11,"أحد عشر"]
[10,"أكتوبر","16 -10 -8 ","ثلاثة",3,null,"الثلاثاء,الخميس,الأربعاء",null,null,null,null,12,"إثنا عشر"]
[11,"نوفمبر","27 -14 -8 -6 ","أربعة",4,null,"الأربعاء,الجمعة,الخميس,الأربعاء"]
[12,"ديسمبر","10 -5 ","إثنان",2,null,"الخميس,الثلاثاء"]
[]
[null,"عـــــدد أيــــــــــــام الغيـــــــــــــــــاب خـــــــــــــــــــــلال السنــــــــــــــــة ",null,{"$f":"SUM(E5:E17)","v":20}]
[null,null,{"$f":"IFERROR(INDEX('[1]أرشيف الغياب'!#REF!,MATCH(D4,'[1]أرشيف الغياب'!#REF!,0)),\"\")","v":""},{"$f":"IFERROR(INDEX('[1]أرشيف الغياب'!#REF!,MATCH(D4,'[1]أرشيف الغياب'!#REF!,0)),\"\")","v":""},{"$f":"IFERROR(INDEX('[1]أرشيف الغياب'!#REF!,MATCH(D4,'[1]أرشيف الغياب'!#REF!,0)),\"\")","v":""}]
[null,null,{"$f":"IFERROR(INDEX('[1]أرشيف الغياب'!#REF!,MATCH(D5,'[1]أرشيف الغياب'!#REF!,0)),\"\")","v":""},{"$f":"IFERROR(INDEX('[1]أرشيف الغياب'!#REF!,MATCH(D5,'[1]أرشيف الغياب'!#REF!,0)),\"\")","v":""},{"$f":"IFERROR(INDEX('[1]أرشيف الغياب'!#REF!,MATCH(D5,'[1]أرشيف الغياب'!#REF!,0)),\"\")","v":""}]
[null,null,{"$f":"IFERROR(INDEX('[1]أرشيف الغياب'!#REF!,MATCH(#REF!,'[1]أرشيف الغياب'!#REF!,0)),\"\")","v":""},{"$f":"IFERROR(INDEX('[1]أرشيف الغياب'!#REF!,MATCH(#REF!,'[1]أرشيف الغياب'!#REF!,0)),\"\")","v":""},{"$f":"IFERROR(INDEX('[1]أرشيف الغياب'!#REF!,MATCH(#REF!,'[1]أرشيف الغياب'!#REF!,0)),\"\")","v":""}]
[null,null,{"$f":"IFERROR(INDEX('[1]أرشيف الغياب'!#REF!,MATCH(D19,'[1]أرشيف الغياب'!#REF!,0)),\"\")","v":""},{"$f":"IFERROR(INDEX('[1]أرشيف الغياب'!#REF!,MATCH(D19,'[1]أرشيف الغياب'!#REF!,0)),\"\")","v":""},{"$f":"IFERROR(INDEX('[1]أرشيف الغياب'!#REF!,MATCH(D19,'[1]أرشيف الغياب'!#REF!,0)),\"\")","v":""}]
[null,null,{"$f":"IFERROR(INDEX('[1]أرشيف الغياب'!#REF!,MATCH(D20,'[1]أرشيف الغياب'!#REF!,0)),\"\")","v":""},{"$f":"IFERROR(INDEX('[1]أرشيف الغياب'!#REF!,MATCH(D20,'[1]أرشيف الغياب'!#REF!,0)),\"\")","v":""},{"$f":"IFERROR(INDEX('[1]أرشيف الغياب'!#REF!,MATCH(D20,'[1]أرشيف الغياب'!#REF!,0)),\"\")","v":""}]
[null,null,{"$f":"IFERROR(INDEX('[1]أرشيف الغياب'!#REF!,MATCH(D21,'[1]أرشيف الغياب'!#REF!,0)),\"\")","v":""},{"$f":"IFERROR(INDEX('[1]أرشيف الغياب'!#REF!,MATCH(D21,'[1]أرشيف الغياب'!#REF!,0)),\"\")","v":""},{"$f":"IFERROR(INDEX('[1]أرشيف الغياب'!#REF!,MATCH(D21,'[1]أرشيف الغياب'!#REF!,0)),\"\")","v":""}]
[null,null,{"$f":"IFERROR(INDEX('[1]أرشيف الغياب'!#REF!,MATCH(D22,'[1]أرشيف الغياب'!#REF!,0)),\"\")","v":""},{"$f":"IFERROR(INDEX('[1]أرشيف الغياب'!#REF!,MATCH(D22,'[1]أرشيف الغياب'!#REF!,0)),\"\")","v":""},{"$f":"IFERROR(INDEX('[1]أرشيف الغياب'!#REF!,MATCH(D22,'[1]أرشيف الغياب'!#REF!,0)),\"\")","v":""}]
[null,null,{"$f":"IFERROR(INDEX('[1]أرشيف الغياب'!#REF!,MATCH(D23,'[1]أرشيف الغياب'!#REF!,0)),\"\")","v":""},{"$f":"IFERROR(INDEX('[1]أرشيف الغياب'!#REF!,MATCH(D23,'[1]أرشيف الغياب'!#REF!,0)),\"\")","v":""},{"$f":"IFERROR(INDEX('[1]أرشيف الغياب'!#REF!,MATCH(D23,'[1]أرشيف الغياب'!#REF!,0)),\"\")","v":""}]
[null,null,{"$f":"IFERROR(INDEX('[1]أرشيف الغياب'!#REF!,MATCH(D24,'[1]أرشيف الغياب'!#REF!,0)),\"\")","v":""},{"$f":"IFERROR(INDEX('[1]أرشيف الغياب'!#REF!,MATCH(D24,'[1]أرشيف الغياب'!#REF!,0)),\"\")","v":""},{"$f":"IFERROR(INDEX('[1]أرشيف الغياب'!#REF!,MATCH(D24,'[1]أرشيف الغياب'!#REF!,0)),\"\")","v":""}]
[null,null,{"$f":"IFERROR(INDEX('[1]أرشيف الغياب'!#REF!,MATCH(D25,'[1]أرشيف الغياب'!#REF!,0)),\"\")","v":""},{"$f":"IFERROR(INDEX('[1]أرشيف الغياب'!#REF!,MATCH(D25,'[1]أرشيف الغياب'!#REF!,0)),\"\")","v":""},{"$f":"IFERROR(INDEX('[1]أرشيف الغياب'!#REF!,MATCH(D25,'[1]أرشيف الغياب'!#REF!,0)),\"\")","v":""}]

{"sheet":"Sheet1","index":1,"n_rows":0,"n_cols":0,"rows_kept":0,"cut":false,"hidden":false,"merged":[]}